[Event "Titled Tuesday Blitz May 16 Early 2023"]
[White "Dixit, Nikhil"]
[Black "Madaminov, Mukhiddin"]
[WhiteFideId "5059534"]
[BlackFideId "14210703"]
[WhiteElo "2207"]
[BlackElo "2511"]
[Result "1-0"]
[Round "08"]
[TimeControl "180+2"]
[Date "2023.05.16"]
[WhiteClock "0:00:10"]
[BlackClock "0:00:00"]

1. e4 {[%clk 0:02:57]}  c5 {[%clk 0:02:59]} 2. Nf3 {[%clk 0:02:56]}  d6 {[%clk 0:03:00]} 3. Bb5+ {[%clk 0:02:42]}  Nd7 {[%clk 0:02:59]} 4. Bxd7+ {[%clk 0:02:43]}  Bxd7 {[%clk 0:02:54]} 5. O-O {[%clk 0:02:43]}  Nf6 {[%clk 0:02:45]} 6. e5 {[%clk 0:02:41]}  dxe5 {[%clk 0:02:44]} 7. Nxe5 {[%clk 0:02:42]}  Qc7 {[%clk 0:02:44]} 8. Nxd7 {[%clk 0:01:49]}  Qxd7 {[%clk 0:02:43]} 9. d3 {[%clk 0:01:49]}  e6 {[%clk 0:02:43]} 10. Bg5 {[%clk 0:01:49]}  Be7 {[%clk 0:02:41]} 11. Nc3 {[%clk 0:01:49]}  O-O {[%clk 0:02:41]} 12. Qe2 {[%clk 0:01:50]}  Rfe8 {[%clk 0:02:40]} 13. Rae1 {[%clk 0:01:51]}  Rad8 {[%clk 0:02:40]} 14. Ne4 {[%clk 0:01:31]}  Nxe4 {[%clk 0:02:31]} 15. Bxe7 {[%clk 0:01:32]}  Qxe7 {[%clk 0:02:30]} 16. Qxe4 {[%clk 0:01:26]}  Rd4 {[%clk 0:02:30]} 17. Qe5 {[%clk 0:01:24]}  b6 {[%clk 0:02:28]} 18. Re3 {[%clk 0:01:21]}  Red8 {[%clk 0:02:23]} 19. Rfe1 {[%clk 0:01:20]}  h6 {[%clk 0:02:20]} 20. Rg3 {[%clk 0:01:19]}  g6 {[%clk 0:02:11]} 21. Rh3 {[%clk 0:01:19]}  Kh7 {[%clk 0:02:06]} 22. Rf3 {[%clk 0:01:13]}  R8d5 {[%clk 0:02:02]} 23. Qb8 {[%clk 0:01:12]}  Rf5 {[%clk 0:02:01]} 24. Rxf5 {[%clk 0:01:10]}  gxf5 {[%clk 0:02:01]} 25. Qe5 {[%clk 0:01:07]}  Kg6 {[%clk 0:02:00]} 26. Re3 {[%clk 0:01:06]}  h5 {[%clk 0:01:52]} 27. Rg3+ {[%clk 0:01:03]}  Rg4 {[%clk 0:01:52]} 28. h3 {[%clk 0:01:03]}  Rxg3 {[%clk 0:01:52]} 29. Qxg3+ {[%clk 0:01:04]}  Kh7 {[%clk 0:01:50]} 30. h4 {[%clk 0:01:00]}  Qf6 {[%clk 0:01:46]} 31. c3 {[%clk 0:00:58]}  f4 {[%clk 0:01:46]} 32. Qf3 {[%clk 0:00:54]}  Qxh4 {[%clk 0:01:45]} 33. Qb7 {[%clk 0:00:53]}  Kg6 {[%clk 0:01:41]} 34. Qxa7 {[%clk 0:00:52]}  Qd8 {[%clk 0:01:41]} 35. Qa6 {[%clk 0:00:44]}  e5 {[%clk 0:01:40]} 36. Qc4 {[%clk 0:00:44]}  h4 {[%clk 0:01:37]} 37. a4 {[%clk 0:00:43]}  f6 {[%clk 0:01:30]} 38. Qe4+ {[%clk 0:00:41]}  Kg5 {[%clk 0:01:29]} 39. b4 {[%clk 0:00:37]}  cxb4 {[%clk 0:01:28]} 40. cxb4 {[%clk 0:00:38]}  Qc7 {[%clk 0:01:27]} 41. Kh2 {[%clk 0:00:35]}  f5 {[%clk 0:01:22]} 42. Qd5 {[%clk 0:00:33]}  Kf6 {[%clk 0:00:47]} 43. Kh3 {[%clk 0:00:30]}  Qc1 {[%clk 0:00:39]} 44. Qd6+ {[%clk 0:00:29]}  Kf7 {[%clk 0:00:39]} 45. Kxh4 {[%clk 0:00:25]}  f3 {[%clk 0:00:32]} 46. Qd5+ {[%clk 0:00:22]}  Kf6 {[%clk 0:00:31]} 47. Qd6+ {[%clk 0:00:12]}  Kf7 {[%clk 0:00:32]} 48. Qd7+ {[%clk 0:00:12]}  Kg6 {[%clk 0:00:30]} 49. Qe8+ {[%clk 0:00:12]}  Kf6 {[%clk 0:00:30]} 50. Qf8+ {[%clk 0:00:12]}  Ke6 {[%clk 0:00:31]} 51. Qe8+ {[%clk 0:00:12]}  Kd6 {[%clk 0:00:27]} 52. Qd8+ {[%clk 0:00:12]}  Ke6 {[%clk 0:00:28]} 53. Qe8+ {[%clk 0:00:13]}  Kf6 {[%clk 0:00:29]} 54. Qf8+ {[%clk 0:00:12]}  Kg6 {[%clk 0:00:29]} 55. Qg8+ {[%clk 0:00:12]}  Kh6 {[%clk 0:00:28]} 56. Qe6+ {[%clk 0:00:12]}  Kg7 {[%clk 0:00:26]} 57. Qxe5+ {[%clk 0:00:12]}  Kg6 {[%clk 0:00:26]} 58. Qd6+ {[%clk 0:00:12]}  Kf7 {[%clk 0:00:25]} 59. Qd7+ {[%clk 0:00:12]}  Kf6 {[%clk 0:00:25]} 60. Qd8+ {[%clk 0:00:12]}  Kf7 {[%clk 0:00:25]} 61. Qd5+ {[%clk 0:00:12]}  Kf6 {[%clk 0:00:25]} 62. Qd4+ {[%clk 0:00:12]}  Kg6 {[%clk 0:00:18]} 63. gxf3 {[%clk 0:00:06]}  Qh1+ {[%clk 0:00:15]} 64. Kg3 {[%clk 0:00:07]}  Qg1+ {[%clk 0:00:07]} 65. Kf4 {[%clk 0:00:07]}  Qg5+ {[%clk 0:00:05]} 66. Ke5 {[%clk 0:00:07]}  Qf6+ {[%clk 0:00:05]} 67. Kd5 {[%clk 0:00:07]}  Qd8+ {[%clk 0:00:05]} 68. Kc4 {[%clk 0:00:07]}  Qc7+ {[%clk 0:00:03]} 69. Kb3 {[%clk 0:00:08]}  Qc1 {[%clk 0:00:03]} 70. Qxb6+ {[%clk 0:00:08]}  Kh5 {[%clk 0:00:04]} 71. Qc5 {[%clk 0:00:09]}  Qb1+ {[%clk 0:00:04]} 72. Kc4 {[%clk 0:00:09]}  Kh4 {[%clk 0:00:04]} 73. Kb5 {[%clk 0:00:09]}  Qxd3+ {[%clk 0:00:03]} 74. Qc4+ {[%clk 0:00:09]}  Kh3 {[%clk 0:00:02]} 75. Qxd3 {[%clk 0:00:09]}  f4 {[%clk 0:00:01]} 76. a5 {[%clk 0:00:09]}  Kg2 {[%clk 0:00:00]} 77. a6 {[%clk 0:00:10]} 1-0


[Site "https://www.chess.com"]

[Event "Titled Tuesday Blitz May 16 Early 2023"]
[White "Melikyan, Gnel"]
[Black "Csonka, Balazs"]
[WhiteFideId "54109990"]
[BlackFideId "742910"]
[WhiteElo "2138"]
[BlackElo "2404"]
[Result "1-0"]
[Round "08"]
[TimeControl "180+2"]
[Date "2023.05.16"]
[WhiteClock "0:00:09"]
[BlackClock "0:00:02"]

1. d4 {[%clk 0:02:51]}  Nf6 {[%clk 0:02:56]} 2. c4 {[%clk 0:02:51]}  g6 {[%clk 0:02:55]} 3. Nc3 {[%clk 0:02:51]}  d5 {[%clk 0:02:56]} 4. cxd5 {[%clk 0:02:50]}  Nxd5 {[%clk 0:02:56]} 5. Bd2 {[%clk 0:02:50]}  Nb6 {[%clk 0:02:50]} 6. e3 {[%clk 0:02:48]}  Bg7 {[%clk 0:02:48]} 7. Nf3 {[%clk 0:02:48]}  O-O {[%clk 0:02:48]} 8. Be2 {[%clk 0:02:48]}  N8d7 {[%clk 0:02:48]} 9. O-O {[%clk 0:02:48]}  e5 {[%clk 0:02:38]} 10. a4 {[%clk 0:02:24]}  a5 {[%clk 0:02:17]} 11. Ne4 {[%clk 0:02:01]}  exd4 {[%clk 0:02:07]} 12. Nxd4 {[%clk 0:01:59]}  Ne5 {[%clk 0:01:49]} 13. Bc3 {[%clk 0:01:57]}  Qe7 {[%clk 0:01:47]} 14. Nb3 {[%clk 0:01:43]}  Rd8 {[%clk 0:01:24]} 15. Qc2 {[%clk 0:01:35]}  Bf5 {[%clk 0:01:24]} 16. Nd4 {[%clk 0:01:24]}  Bd7 {[%clk 0:01:15]} 17. Rfd1 {[%clk 0:01:21]}  Nd5 {[%clk 0:01:07]} 18. Be1 {[%clk 0:01:10]}  b6 {[%clk 0:00:48]} 19. Nb5 {[%clk 0:01:00]}  Rac8 {[%clk 0:00:37]} 20. Na7 {[%clk 0:00:57]}  Ra8 {[%clk 0:00:34]} 21. Nb5 {[%clk 0:00:54]}  c6 {[%clk 0:00:22]} 22. Nd4 {[%clk 0:00:35]}  Rac8 {[%clk 0:00:21]} 23. Rac1 {[%clk 0:00:30]}  Be8 {[%clk 0:00:20]} 24. Qb3 {[%clk 0:00:23]}  Nb4 {[%clk 0:00:19]} 25. Nc3 {[%clk 0:00:14]}  h6 {[%clk 0:00:16]} 26. Nf3 {[%clk 0:00:14]}  Kh7 {[%clk 0:00:15]} 27. Nxe5 {[%clk 0:00:14]}  Bxe5 {[%clk 0:00:16]} 28. g3 {[%clk 0:00:11]}  f5 {[%clk 0:00:16]} 29. Bf1 {[%clk 0:00:11]}  Bf7 {[%clk 0:00:16]} 30. Qa3 {[%clk 0:00:09]}  Rxd1 {[%clk 0:00:15]} 31. Rxd1 {[%clk 0:00:08]}  Rd8 {[%clk 0:00:16]} 32. Qa1 {[%clk 0:00:08]}  Bb3 {[%clk 0:00:14]} 33. Rxd8 {[%clk 0:00:07]}  Qxd8 {[%clk 0:00:15]} 34. Qc1 {[%clk 0:00:07]}  Kg7 {[%clk 0:00:15]} 35. Ne2 {[%clk 0:00:07]}  Qd1 {[%clk 0:00:10]} 36. Qxd1 {[%clk 0:00:05]}  Bxd1 {[%clk 0:00:11]} 37. Nd4 {[%clk 0:00:05]}  c5 {[%clk 0:00:10]} 38. Ne6+ {[%clk 0:00:04]}  Kf6 {[%clk 0:00:07]} 39. Nf4 {[%clk 0:00:05]}  Bxb2 {[%clk 0:00:02]} 40. Bxb4 {[%clk 0:00:05]}  cxb4 {[%clk 0:00:02]} 41. Nd5+ {[%clk 0:00:06]}  Ke6 {[%clk 0:00:02]} 42. Nxb6 {[%clk 0:00:07]}  Bc1 {[%clk 0:00:02]} 43. Nc4 {[%clk 0:00:07]}  b3 {[%clk 0:00:02]} 44. Bd3 {[%clk 0:00:07]}  b2 {[%clk 0:00:02]} 45. Bb1 {[%clk 0:00:05]}  Bxa4 {[%clk 0:00:02]} 46. Nxa5 {[%clk 0:00:06]}  Bb5 {[%clk 0:00:03]} 47. Nb3 {[%clk 0:00:06]}  Kd5 {[%clk 0:00:03]} 48. Nd4 {[%clk 0:00:05]}  Kc4 {[%clk 0:00:03]} 49. Nxb5 {[%clk 0:00:04]}  Kxb5 {[%clk 0:00:03]} 50. Kf1 {[%clk 0:00:05]}  Kc4 {[%clk 0:00:03]} 51. Ke1 {[%clk 0:00:06]}  Kc3 {[%clk 0:00:04]} 52. Ke2 {[%clk 0:00:06]}  Bd2 {[%clk 0:00:03]} 53. h4 {[%clk 0:00:07]}  Bc1 {[%clk 0:00:03]} 54. h5 {[%clk 0:00:07]}  gxh5 {[%clk 0:00:04]} 55. Bxf5 {[%clk 0:00:07]}  Kb3 {[%clk 0:00:04]} 56. Bb1 {[%clk 0:00:08]}  Kc4 {[%clk 0:00:05]} 57. f4 {[%clk 0:00:08]}  Kd5 {[%clk 0:00:05]} 58. Kf3 {[%clk 0:00:09]}  Ke6 {[%clk 0:00:05]} 59. e4 {[%clk 0:00:09]}  Bd2 {[%clk 0:00:05]} 60. e5 {[%clk 0:00:09]}  Bc3 {[%clk 0:00:03]} 61. Ke4 {[%clk 0:00:10]}  Ba5 {[%clk 0:00:04]} 62. f5+ {[%clk 0:00:10]}  Kf7 {[%clk 0:00:04]} 63. f6 {[%clk 0:00:10]}  Bb4 {[%clk 0:00:03]} 64. Kf5 {[%clk 0:00:11]}  Kf8 {[%clk 0:00:03]} 65. e6 {[%clk 0:00:11]}  Bd6 {[%clk 0:00:03]} 66. Kg6 {[%clk 0:00:09]}  h4 {[%clk 0:00:01]} 67. gxh4 {[%clk 0:00:09]}  Bc5 {[%clk 0:00:02]} 68. h5 {[%clk 0:00:09]}  Bd6 {[%clk 0:00:02]} 69. Kxh6 {[%clk 0:00:09]} 1-0


[Site "https://www.chess.com"]

[Event "Titled Tuesday Blitz May 16 Early 2023"]
[White "Begmuratov, Alisher"]
[Black "Omelja, Artem"]
[WhiteFideId "14203367"]
[BlackFideId "14119846"]
[WhiteElo "2387"]
[BlackElo "2404"]
[Result "0-1"]
[Round "08"]
[TimeControl "180+2"]
[Date "2023.05.16"]
[WhiteClock "0:00:41"]
[BlackClock "0:01:31"]

1. e4 {[%clk 0:03:00]}  c5 {[%clk 0:02:58]} 2. d4 {[%clk 0:03:00]}  cxd4 {[%clk 0:02:57]} 3. c3 {[%clk 0:03:01]}  dxc3 {[%clk 0:02:58]} 4. Nxc3 {[%clk 0:03:01]}  Nc6 {[%clk 0:02:58]} 5. Nf3 {[%clk 0:03:01]}  d6 {[%clk 0:02:58]} 6. Bc4 {[%clk 0:03:01]}  Nf6 {[%clk 0:02:56]} 7. O-O {[%clk 0:03:00]}  e6 {[%clk 0:02:54]} 8. Qe2 {[%clk 0:03:01]}  a6 {[%clk 0:02:52]} 9. Rd1 {[%clk 0:03:00]}  Qc7 {[%clk 0:02:52]} 10. Bf4 {[%clk 0:02:56]}  e5 {[%clk 0:02:51]} 11. Bg5 {[%clk 0:02:55]}  Be7 {[%clk 0:02:49]} 12. Bxf6 {[%clk 0:02:28]}  Bxf6 {[%clk 0:02:43]} 13. h3 {[%clk 0:02:29]}  O-O {[%clk 0:02:42]} 14. Rd2 {[%clk 0:02:29]}  Be6 {[%clk 0:02:41]} 15. Rad1 {[%clk 0:02:28]}  Rfd8 {[%clk 0:02:40]} 16. Nd5 {[%clk 0:02:23]}  Bxd5 {[%clk 0:02:39]} 17. Bxd5 {[%clk 0:02:23]}  Rac8 {[%clk 0:02:33]} 18. Rc2 {[%clk 0:02:18]}  Qb6 {[%clk 0:02:32]} 19. Rdc1 {[%clk 0:02:16]}  Ne7 {[%clk 0:02:31]} 20. Rxc8 {[%clk 0:02:15]}  Rxc8 {[%clk 0:02:25]} 21. Rxc8+ {[%clk 0:02:14]}  Nxc8 {[%clk 0:02:26]} 22. Qc4 {[%clk 0:02:04]}  Qc5 {[%clk 0:02:26]} 23. Qxc5 {[%clk 0:02:02]}  dxc5 {[%clk 0:02:27]} 24. Bxb7 {[%clk 0:02:02]}  Nd6 {[%clk 0:02:27]} 25. Bxa6 {[%clk 0:01:54]}  Nxe4 {[%clk 0:02:27]} 26. Bb7 {[%clk 0:01:49]}  Nd6 {[%clk 0:02:27]} 27. Bc6 {[%clk 0:01:49]}  e4 {[%clk 0:02:27]} 28. Nd2 {[%clk 0:01:49]}  Bxb2 {[%clk 0:02:26]} 29. a4 {[%clk 0:01:48]}  c4 {[%clk 0:02:03]} 30. Nxe4 {[%clk 0:01:35]}  c3 {[%clk 0:01:58]} 31. Nc5 {[%clk 0:01:17]}  c2 {[%clk 0:01:53]} 32. Nd3 {[%clk 0:01:16]}  c1=Q+ {[%clk 0:01:52]} 33. Nxc1 {[%clk 0:01:16]}  Bxc1 {[%clk 0:01:53]} 34. a5 {[%clk 0:01:17]}  Ba3 {[%clk 0:01:45]} 35. a6 {[%clk 0:01:16]}  Bc5 {[%clk 0:01:46]} 36. Kf1 {[%clk 0:01:16]}  Kf8 {[%clk 0:01:46]} 37. Ke2 {[%clk 0:01:16]}  Ke7 {[%clk 0:01:46]} 38. f4 {[%clk 0:01:15]}  Kd8 {[%clk 0:01:45]} 39. Kf3 {[%clk 0:01:14]}  Kc7 {[%clk 0:01:45]} 40. Bd5 {[%clk 0:01:14]}  Kb6 {[%clk 0:01:45]} 41. g4 {[%clk 0:01:12]}  Kxa6 {[%clk 0:01:44]} 42. g5 {[%clk 0:01:12]}  Kb6 {[%clk 0:01:43]} 43. h4 {[%clk 0:01:12]}  Bd4 {[%clk 0:01:43]} 44. Kg4 {[%clk 0:01:11]}  Kc5 {[%clk 0:01:43]} 45. Bb3 {[%clk 0:01:11]}  Be3 {[%clk 0:01:41]} 46. f5 {[%clk 0:01:07]}  Kd4 {[%clk 0:01:41]} 47. h5 {[%clk 0:01:03]}  Ke5 {[%clk 0:01:33]} 48. Bc2 {[%clk 0:00:54]}  h6 {[%clk 0:01:32]} 49. f6 {[%clk 0:00:52]}  gxf6 {[%clk 0:01:29]} 50. g6 {[%clk 0:00:52]}  fxg6 {[%clk 0:01:29]} 51. hxg6 {[%clk 0:00:53]}  Ne8 {[%clk 0:01:29]} 52. Kf3 {[%clk 0:00:45]}  Bg5 {[%clk 0:01:28]} 53. Kg4 {[%clk 0:00:44]}  Ng7 {[%clk 0:01:29]} 54. Bd3 {[%clk 0:00:41]}  f5+ {[%clk 0:01:30]} 55. Kh3 {[%clk 0:00:39]}  Kf6 {[%clk 0:01:30]} 56. Bc2 {[%clk 0:00:39]}  Kxg6 {[%clk 0:01:30]} 57. Bd3 {[%clk 0:00:40]}  Kf6 {[%clk 0:01:30]} 58. Bc2 {[%clk 0:00:40]}  Ke5 {[%clk 0:01:29]} 59. Bd1 {[%clk 0:00:40]}  f4 {[%clk 0:01:29]} 60. Bf3 {[%clk 0:00:40]}  Nf5 {[%clk 0:01:29]} 61. Kg4 {[%clk 0:00:41]}  Nd4 {[%clk 0:01:30]} 62. Kh3 {[%clk 0:00:41]}  Nxf3 {[%clk 0:01:29]} 63. Kg4 {[%clk 0:00:42]}  Nd4 {[%clk 0:01:30]} 64. Kh3 {[%clk 0:00:42]}  f3 {[%clk 0:01:30]} 65. Kg4 {[%clk 0:00:43]}  Ke4 {[%clk 0:01:31]} 66. Kg3 {[%clk 0:00:43]}  Ke3 {[%clk 0:01:32]} 67. Kh2 {[%clk 0:00:43]}  f2 {[%clk 0:01:32]} 68. Kg2 {[%clk 0:00:43]}  Ke2 {[%clk 0:01:32]} 69. Kg3 {[%clk 0:00:41]}  f1=Q {[%clk 0:01:31]} 0-1


[Site "https://www.chess.com"]

[Event "Titled Tuesday Blitz May 16 Early 2023"]
[White "Maxfan2008"]
[Black "Domingo Nunez, Ruben"]
[BlackFideId "22245570"]
[WhiteElo "2536"]
[BlackElo "2404"]
[Result "0-1"]
[Round "08"]
[TimeControl "180+2"]
[Date "2023.05.16"]
[WhiteClock "0:00:00"]
[BlackClock "0:00:03"]

1. d4 {[%clk 0:03:00]}  g6 {[%clk 0:02:52]} 2. c4 {[%clk 0:03:01]}  Bg7 {[%clk 0:02:53]} 3. Nf3 {[%clk 0:03:01]}  d6 {[%clk 0:02:53]} 4. g3 {[%clk 0:03:02]}  Nd7 {[%clk 0:02:54]} 5. Bg2 {[%clk 0:03:02]}  Ngf6 {[%clk 0:02:55]} 6. O-O {[%clk 0:03:03]}  O-O {[%clk 0:02:56]} 7. Nc3 {[%clk 0:03:03]}  c5 {[%clk 0:02:57]} 8. e4 {[%clk 0:03:02]}  Ne8 {[%clk 0:02:56]} 9. h3 {[%clk 0:03:01]}  Rb8 {[%clk 0:02:56]} 10. Be3 {[%clk 0:03:00]}  Nc7 {[%clk 0:02:56]} 11. Qc2 {[%clk 0:02:57]}  a6 {[%clk 0:02:56]} 12. Rad1 {[%clk 0:02:57]}  b6 {[%clk 0:02:56]} 13. Rfe1 {[%clk 0:02:55]}  Bb7 {[%clk 0:02:56]} 14. b3 {[%clk 0:02:55]}  Re8 {[%clk 0:02:54]} 15. d5 {[%clk 0:02:51]}  b5 {[%clk 0:02:53]} 16. Nd2 {[%clk 0:02:48]}  b4 {[%clk 0:02:39]} 17. Ne2 {[%clk 0:02:46]}  e5 {[%clk 0:02:40]} 18. f4 {[%clk 0:02:39]}  exf4 {[%clk 0:02:37]} 19. gxf4 {[%clk 0:02:38]}  Qh4 {[%clk 0:02:35]} 20. Nf3 {[%clk 0:02:35]}  Qf6 {[%clk 0:02:31]} 21. Ng3 {[%clk 0:02:23]}  Qc3 {[%clk 0:02:27]} 22. Qf2 {[%clk 0:02:22]}  Qb2 {[%clk 0:01:55]} 23. Re2 {[%clk 0:02:12]}  Qc3 {[%clk 0:01:52]} 24. e5 {[%clk 0:02:10]}  dxe5 {[%clk 0:01:46]} 25. Ne4 {[%clk 0:02:09]}  exf4 {[%clk 0:01:41]} 26. Nxc3 {[%clk 0:02:00]}  fxe3 {[%clk 0:01:42]} 27. Rxe3 {[%clk 0:01:59]}  bxc3 {[%clk 0:01:40]} 28. d6 {[%clk 0:01:52]}  Ne6 {[%clk 0:01:37]} 29. Kh1 {[%clk 0:01:41]}  Nf4 {[%clk 0:00:51]} 30. Rxe8+ {[%clk 0:01:35]}  Rxe8 {[%clk 0:00:52]} 31. Qg3 {[%clk 0:01:24]}  c2 {[%clk 0:00:48]} 32. Rf1 {[%clk 0:01:17]}  Ne2 {[%clk 0:00:26]} 33. Qg5 {[%clk 0:01:08]}  Bf6 {[%clk 0:00:20]} 34. Qd2 {[%clk 0:01:07]}  Ng3+ {[%clk 0:00:19]} 35. Kg1 {[%clk 0:01:03]}  Re2 {[%clk 0:00:18]} 36. Qc1 {[%clk 0:00:58]}  Bc3 {[%clk 0:00:07]} 37. Rf2 {[%clk 0:00:54]}  Rxf2 {[%clk 0:00:03]} 38. Kxf2 {[%clk 0:00:52]}  Ne4+ {[%clk 0:00:03]} 39. Kg1 {[%clk 0:00:47]}  Ng3 {[%clk 0:00:04]} 40. Qxc2 {[%clk 0:00:46]}  Bf6 {[%clk 0:00:04]} 41. Ne1 {[%clk 0:00:37]}  Bc8 {[%clk 0:00:04]} 42. Nd3 {[%clk 0:00:33]}  Bd4+ {[%clk 0:00:04]} 43. Kh2 {[%clk 0:00:32]}  Nf5 {[%clk 0:00:04]} 44. Qe2 {[%clk 0:00:31]}  Nf6 {[%clk 0:00:01]} 45. Bc6 {[%clk 0:00:29]}  Kg7 {[%clk 0:00:01]} 46. b4 {[%clk 0:00:26]}  Nxd6 {[%clk 0:00:01]} 47. bxc5 {[%clk 0:00:24]}  Nf5 {[%clk 0:00:01]} 48. Bd5 {[%clk 0:00:19]}  Nh5 {[%clk 0:00:01]} 49. c6 {[%clk 0:00:18]}  Nf6 {[%clk 0:00:01]} 50. c7 {[%clk 0:00:18]}  Nd6 {[%clk 0:00:01]} 51. c5 {[%clk 0:00:17]}  Nf5 {[%clk 0:00:01]} 52. c6 {[%clk 0:00:13]}  Bb6 {[%clk 0:00:02]} 53. Qe5 {[%clk 0:00:12]}  h5 {[%clk 0:00:02]} 54. Nf4 {[%clk 0:00:11]}  h4 {[%clk 0:00:02]} 55. Ng2 {[%clk 0:00:08]}  Bc5 {[%clk 0:00:02]} 56. Nf4 {[%clk 0:00:08]}  Bd6 {[%clk 0:00:02]} 57. Qe1 {[%clk 0:00:02]}  Bxf4+ {[%clk 0:00:03]} 58. Kh1 {[%clk 0:00:02]}  Nxd5 {[%clk 0:00:04]} 59. Qe4 {[%clk 0:00:00]}  Ng3+ {[%clk 0:00:03]} 0-1


[Site "https://www.chess.com"]

[Event "Titled Tuesday Blitz May 16 Early 2023"]
[White "Yelisieiev, Yevhenii"]
[Black "Manukyan, Sargis A."]
[WhiteFideId "14139642"]
[BlackFideId "13303970"]
[WhiteElo "2403"]
[BlackElo "2187"]
[Result "0-1"]
[Round "08"]
[TimeControl "180+2"]
[Date "2023.05.16"]
[WhiteClock "0:00:00"]
[BlackClock "0:01:46"]

1. d4 {[%clk 0:03:00]}  d5 {[%clk 0:02:57]} 2. Nf3 {[%clk 0:03:01]}  Nf6 {[%clk 0:02:57]} 3. c4 {[%clk 0:03:02]}  e6 {[%clk 0:02:56]} 4. Nc3 {[%clk 0:03:02]}  Be7 {[%clk 0:02:56]} 5. Bg5 {[%clk 0:03:01]}  O-O {[%clk 0:02:56]} 6. e3 {[%clk 0:03:02]}  h6 {[%clk 0:02:56]} 7. Bh4 {[%clk 0:03:02]}  b6 {[%clk 0:02:55]} 8. cxd5 {[%clk 0:03:02]}  Nxd5 {[%clk 0:02:55]} 9. Bxe7 {[%clk 0:03:01]}  Qxe7 {[%clk 0:02:56]} 10. Nxd5 {[%clk 0:02:48]}  exd5 {[%clk 0:02:56]} 11. Be2 {[%clk 0:02:48]}  Bb7 {[%clk 0:02:56]} 12. O-O {[%clk 0:02:42]}  c5 {[%clk 0:02:56]} 13. dxc5 {[%clk 0:02:42]}  bxc5 {[%clk 0:02:56]} 14. Rc1 {[%clk 0:02:41]}  Nd7 {[%clk 0:02:56]} 15. Qb3 {[%clk 0:02:35]}  Nb6 {[%clk 0:02:52]} 16. Rfd1 {[%clk 0:02:33]}  d4 {[%clk 0:02:51]} 17. Bf1 {[%clk 0:01:12]}  Bxf3 {[%clk 0:02:48]} 18. gxf3 {[%clk 0:01:10]}  dxe3 {[%clk 0:02:48]} 19. Qxe3 {[%clk 0:01:09]}  Qf6 {[%clk 0:02:45]} 20. Qc3 {[%clk 0:00:43]}  Qf4 {[%clk 0:02:36]} 21. Qe3 {[%clk 0:00:38]}  Qf6 {[%clk 0:02:34]} 22. Qc3 {[%clk 0:00:37]}  Qg5+ {[%clk 0:02:35]} 23. Kh1 {[%clk 0:00:36]}  Rac8 {[%clk 0:02:35]} 24. Ba6 {[%clk 0:00:34]}  Rc7 {[%clk 0:02:35]} 25. Rg1 {[%clk 0:00:34]}  Nd5 {[%clk 0:02:17]} 26. Rxg5 {[%clk 0:00:15]}  Nxc3 {[%clk 0:02:17]} 27. Re5 {[%clk 0:00:13]}  Na4 {[%clk 0:02:16]} 28. b3 {[%clk 0:00:12]}  Nb6 {[%clk 0:01:59]} 29. Rexc5 {[%clk 0:00:12]}  Rd7 {[%clk 0:01:56]} 30. Rc7 {[%clk 0:00:12]}  Rd2 {[%clk 0:01:56]} 31. R1c2 {[%clk 0:00:12]}  Rd1+ {[%clk 0:01:57]} 32. Kg2 {[%clk 0:00:13]}  Nd5 {[%clk 0:01:55]} 33. Rxa7 {[%clk 0:00:09]}  Nf4+ {[%clk 0:01:55]} 34. Kg3 {[%clk 0:00:08]}  g5 {[%clk 0:01:56]} 35. h4 {[%clk 0:00:03]}  Rg1+ {[%clk 0:01:46]} 36. Kh2 {[%clk 0:00:03]}  Rg2+ {[%clk 0:01:47]} 37. Kh1 {[%clk 0:00:00]}  Re8 {[%clk 0:01:46]} 0-1


[Site "https://www.chess.com"]

[Event "Titled Tuesday Blitz May 16 Early 2023"]
[White "cristianserban1"]
[Black "Arabidze, Meri"]
[BlackFideId "13604040"]
[WhiteElo "2524"]
[BlackElo "2405"]
[Result "0-1"]
[Round "08"]
[TimeControl "180+2"]
[Date "2023.05.16"]
[WhiteClock "0:00:00"]
[BlackClock "0:00:05"]

1. d4 {[%clk 0:03:00]}  f5 {[%clk 0:02:58]} 2. c4 {[%clk 0:03:00]}  e6 {[%clk 0:02:58]} 3. g3 {[%clk 0:03:00]}  Nf6 {[%clk 0:02:58]} 4. Bg2 {[%clk 0:03:00]}  c6 {[%clk 0:02:59]} 5. Nc3 {[%clk 0:02:59]}  d5 {[%clk 0:02:58]} 6. Bf4 {[%clk 0:02:56]}  Be7 {[%clk 0:02:58]} 7. Nf3 {[%clk 0:02:56]}  O-O {[%clk 0:02:58]} 8. O-O {[%clk 0:02:56]}  Ne4 {[%clk 0:02:56]} 9. Qc2 {[%clk 0:02:55]}  Nd7 {[%clk 0:02:53]} 10. Ne5 {[%clk 0:02:55]}  Nxe5 {[%clk 0:02:53]} 11. Bxe5 {[%clk 0:02:56]}  Bd7 {[%clk 0:02:45]} 12. Nxe4 {[%clk 0:02:46]}  dxe4 {[%clk 0:02:45]} 13. f3 {[%clk 0:02:34]}  Bf6 {[%clk 0:02:39]} 14. fxe4 {[%clk 0:02:29]}  Bxe5 {[%clk 0:02:39]} 15. dxe5 {[%clk 0:02:29]}  Qc7 {[%clk 0:02:28]} 16. Qc3 {[%clk 0:02:20]}  Rae8 {[%clk 0:02:21]} 17. Rfd1 {[%clk 0:02:16]}  f4 {[%clk 0:02:17]} 18. Rd6 {[%clk 0:02:11]}  c5 {[%clk 0:02:13]} 19. gxf4 {[%clk 0:01:51]}  Rxf4 {[%clk 0:02:14]} 20. Qg3 {[%clk 0:01:51]}  Ref8 {[%clk 0:02:01]} 21. e3 {[%clk 0:01:49]}  R4f7 {[%clk 0:01:55]} 22. Rad1 {[%clk 0:01:39]}  a6 {[%clk 0:01:43]} 23. Bh3 {[%clk 0:01:39]}  Rf3 {[%clk 0:01:35]} 24. Qg5 {[%clk 0:01:15]}  Bc6 {[%clk 0:01:11]} 25. Bxe6+ {[%clk 0:01:13]}  Kh8 {[%clk 0:01:11]} 26. Bf5 {[%clk 0:00:52]}  Qf7 {[%clk 0:00:35]} 27. Rd8 {[%clk 0:00:44]}  Be8 {[%clk 0:00:35]} 28. Kg2 {[%clk 0:00:41]}  h6 {[%clk 0:00:35]} 29. Qh4 {[%clk 0:00:26]}  Rxe3 {[%clk 0:00:34]} 30. e6 {[%clk 0:00:26]}  Qc7 {[%clk 0:00:27]} 31. e7 {[%clk 0:00:17]}  Rg8 {[%clk 0:00:27]} 32. Be6 {[%clk 0:00:14]}  Re2+ {[%clk 0:00:24]} 33. Kf1 {[%clk 0:00:12]}  Rxh2 {[%clk 0:00:24]} 34. Qg4 {[%clk 0:00:06]}  Rh1+ {[%clk 0:00:20]} 35. Ke2 {[%clk 0:00:03]}  Rh2+ {[%clk 0:00:15]} 36. Ke3 {[%clk 0:00:02]}  Qe5 {[%clk 0:00:06]} 37. Bxg8 {[%clk 0:00:02]}  Qxb2 {[%clk 0:00:06]} 38. Qf4 {[%clk 0:00:00]}  Rh3+ {[%clk 0:00:05]} 0-1


[Site "https://www.chess.com"]